[Event "Early-Titled-Tuesday-Blitz-March-26-2024"]
[Site "Chess.com"]
[Date "2024.03.26"]
[Round "4"]
[White "AccioChess"]
[Black "newyorkmouse"]
[Result "0-1"]
[WhiteElo "2523"]
[BlackElo "2714"]
[TimeControl "180+1"]
[EndTime "8:39:01 PDT"]
[Termination "newyorkmouse won on time"]

1. e4 {[%clk 0:03:00.9]} 1... c6 {[%clk 0:02:59.5]} 2. d4 {[%clk 0:03:00.5]}
2... d5 {[%clk 0:02:59.3]} 3. e5 {[%clk 0:03:01.4]} 3... Na6 {[%clk 0:02:59.6]}
4. Bxa6 {[%clk 0:02:58.9]} 4... Qa5+ {[%clk 0:02:57.2]} 5. Nc3 {[%clk
0:02:55.6]} 5... Qxa6 {[%clk 0:02:57.3]} 6. Nge2 {[%clk 0:02:55.4]} 6... Bf5
{[%clk 0:02:49.6]} 7. O-O {[%clk 0:02:54.8]} 7... e6 {[%clk 0:02:49.6]} 8. Ng3
{[%clk 0:02:43.3]} 8... Bg6 {[%clk 0:02:49.2]} 9. h4 {[%clk 0:02:38.1]} 9... h6
{[%clk 0:02:46.8]} 10. h5 {[%clk 0:02:36.9]} 10... Bh7 {[%clk 0:02:47]} 11. Nce2
{[%clk 0:02:31.2]} 11... Ne7 {[%clk 0:02:45.4]} 12. Nf4 {[%clk 0:02:28.7]} 12...
Nf5 {[%clk 0:02:44.5]} 13. Nxf5 {[%clk 0:02:28.2]} 13... Bxf5 {[%clk 0:02:44.5]}
14. Be3 {[%clk 0:02:27]} 14... Be7 {[%clk 0:02:44.2]} 15. c3 {[%clk 0:02:22.5]}
15... O-O-O {[%clk 0:02:43.7]} 16. b4 {[%clk 0:02:20.1]} 16... g5 {[%clk
0:02:42.2]} 17. hxg6 {[%clk 0:02:19.1]} 17... fxg6 {[%clk 0:02:42.3]} 18. a4
{[%clk 0:02:04.5]} 18... Qc4 {[%clk 0:02:40.8]} 19. Qd2 {[%clk 0:02:01.8]} 19...
g5 {[%clk 0:02:29.5]} 20. Nh5 {[%clk 0:02:01.2]} 20... Rdg8 {[%clk 0:02:15.7]}
21. b5 {[%clk 0:01:53.2]} 21... c5 {[%clk 0:02:14]} 22. dxc5 {[%clk 0:01:40.2]}
22... Bxc5 {[%clk 0:02:10.3]} 23. Nf6 {[%clk 0:01:36.4]} 23... Rg6 {[%clk
0:02:08.8]} 24. Bxc5 {[%clk 0:01:34.9]} 24... Qxc5 {[%clk 0:02:08.2]} 25. Qd4
{[%clk 0:01:23.7]} 25... Qc7 {[%clk 0:01:49]} 26. Qxa7 {[%clk 0:01:10.9]} 26...
Qxe5 {[%clk 0:01:48.7]} 27. Qa8+ {[%clk 0:01:02.5]} 27... Qb8 {[%clk 0:01:49.2]}
28. Qxb8+ {[%clk 0:01:00.3]} 28... Kxb8 {[%clk 0:01:50.1]} 29. Nd7+ {[%clk
0:00:59.9]} 29... Kc7 {[%clk 0:01:50.3]} 30. Ne5 {[%clk 0:01:00.8]} 30... Rg7
{[%clk 0:01:50]} 31. c4 {[%clk 0:00:56.7]} 31... Kd6 {[%clk 0:01:38.4]} 32. Rfe1
{[%clk 0:00:55.9]} 32... h5 {[%clk 0:01:29.2]} 33. Rad1 {[%clk 0:00:24.7]} 33...
h4 {[%clk 0:01:25.6]} 34. f3 {[%clk 0:00:20.2]} 34... h3 {[%clk 0:01:25.1]} 35.
g4 {[%clk 0:00:20.4]} 35... Bc2 {[%clk 0:01:24.1]} 36. Rd2 {[%clk 0:00:20.1]}
36... Bxa4 {[%clk 0:01:22.9]} 37. Kh2 {[%clk 0:00:19.6]} 37... Kc5 {[%clk
0:01:14.5]} 38. cxd5 {[%clk 0:00:18.3]} 38... exd5 {[%clk 0:01:14.1]} 39. Rc1+
{[%clk 0:00:18.3]} 39... Kxb5 {[%clk 0:01:13.4]} 40. Rxd5+ {[%clk 0:00:16]}
40... Ka6 {[%clk 0:01:11.2]} 41. Rd6+ {[%clk 0:00:16]} 41... Ka7 {[%clk
0:01:07.1]} 42. Nc4 {[%clk 0:00:13.9]} 42... Rc8 {[%clk 0:01:02.9]} 43. Rb6
{[%clk 0:00:11.9]} 43... Rgc7 {[%clk 0:01:00.2]} 44. Rcb1 {[%clk 0:00:06.4]}
44... Rxc4 {[%clk 0:00:57.3]} 45. Rxb7+ {[%clk 0:00:06.7]} 45... Ka8 {[%clk
0:00:57.2]} 46. Rg7 {[%clk 0:00:05.9]} 46... R4c5 {[%clk 0:00:53.5]} 47. Kxh3
{[%clk 0:00:05.4]} 47... R8c7 {[%clk 0:00:50.1]} 48. Rg8+ {[%clk 0:00:02.6]}
48... Ka7 {[%clk 0:00:50]} 49. Ra1 {[%clk 0:00:03.1]} 49... Ra5 {[%clk
0:00:48.4]} 50. Rf8 {[%clk 0:00:03.4]} 50... Kb6 {[%clk 0:00:41]} 51. Rf5 {[%clk
0:00:03.6]} 51... Rxf5 {[%clk 0:00:27.1]} 52. gxf5 {[%clk 0:00:03.6]} 52... Bd7
{[%clk 0:00:26.7]} 53. Kg4 {[%clk 0:00:03.8]} 53... Rc5 {[%clk 0:00:27.1]} 54.
Rb1+ {[%clk 0:00:03.6]} 54... Kc7 {[%clk 0:00:25.5]} 55. Kxg5 {[%clk 0:00:03.9]}
55... Rxf5+ {[%clk 0:00:25.4]} 56. Kg6 {[%clk 0:00:04.3]} 56... Rxf3 {[%clk
0:00:25.5]} 57. Rc1+ {[%clk 0:00:04.8]} 57... Kd8 {[%clk 0:00:24.8]} 58. Rd1
{[%clk 0:00:05.2]} 58... Ke7 {[%clk 0:00:24.9]} 59. Ra1 {[%clk 0:00:05.5]} 59...
Rg3+ {[%clk 0:00:24.4]} 60. Kh5 {[%clk 0:00:05.8]} 60... Kf6 {[%clk 0:00:23]}
61. Ra6+ {[%clk 0:00:05.9]} 61... Be6 {[%clk 0:00:23.3]} 62. Ra4 {[%clk
0:00:02.6]} 62... Rc3 {[%clk 0:00:07.9]} 0-1

[Event "Early-Titled-Tuesday-Blitz-March-26-2024"]
[Site "Chess.com"]
[Date "2024.03.26"]
[Round "4"]
[White "leoduarte"]
[Black "PolandHussars"]
[Result "1/2-1/2"]
[WhiteElo "2409"]
[BlackElo "2548"]
[TimeControl "180+1"]
[EndTime "8:39:01 PDT"]
[Termination "Game drawn - insufficient material"]

1. d4 {[%clk 0:02:44.4]} 1... Nf6 {[%clk 0:02:59.1]} 2. Bf4 {[%clk 0:02:43.2]}
2... c5 {[%clk 0:03:00]} 3. d5 {[%clk 0:02:40.9]} 3... e6 {[%clk 0:02:57.9]} 4.
c4 {[%clk 0:02:40.4]} 4... exd5 {[%clk 0:02:58.4]} 5. cxd5 {[%clk 0:02:40.8]}
5... d6 {[%clk 0:02:59.1]} 6. Nc3 {[%clk 0:02:39.6]} 6... Nh5 {[%clk 0:02:58.4]}
7. Bc1 {[%clk 0:02:30.5]} 7... a6 {[%clk 0:02:57.4]} 8. a4 {[%clk 0:02:18.8]}
8... g6 {[%clk 0:02:57.5]} 9. e4 {[%clk 0:02:10.4]} 9... Bg7 {[%clk 0:02:57]}
10. Nf3 {[%clk 0:02:04.2]} 10... Bg4 {[%clk 0:02:55.5]} 11. Be2 {[%clk
0:02:03.6]} 11... O-O {[%clk 0:02:54.9]} 12. h3 {[%clk 0:02:03.7]} 12... Bxf3
{[%clk 0:02:55.2]} 13. Bxf3 {[%clk 0:02:04.6]} 13... Nf6 {[%clk 0:02:55.9]} 14.
O-O {[%clk 0:02:03.5]} 14... Re8 {[%clk 0:02:56]} 15. Bf4 {[%clk 0:02:03.1]}
15... Qc7 {[%clk 0:02:54]} 16. Re1 {[%clk 0:02:00.8]} 16... Nbd7 {[%clk
0:02:53.5]} 17. Bh2 {[%clk 0:01:55.2]} 17... Rab8 {[%clk 0:02:53.6]} 18. a5
{[%clk 0:01:51.3]} 18... c4 {[%clk 0:02:54.1]} 19. Ra2 {[%clk 0:01:38.2]} 19...
Ne5 {[%clk 0:02:52.1]} 20. Be2 {[%clk 0:01:36.1]} 20... Nfd7 {[%clk 0:02:51.9]}
21. f4 {[%clk 0:01:24.8]} 21... Nd3 {[%clk 0:02:52.1]} 22. Bxd3 {[%clk
0:01:25.4]} 22... cxd3 {[%clk 0:02:53]} 23. Qxd3 {[%clk 0:01:25.7]} 23... Nc5
{[%clk 0:02:52.9]} 24. Qc4 {[%clk 0:01:13.7]} 24... Rbc8 {[%clk 0:02:53]} 25. b4
{[%clk 0:00:14.3]} 25... Bxc3 {[%clk 0:02:42.8]} 26. Qxc3 {[%clk 0:00:10.4]}
26... Nxe4 {[%clk 0:02:43]} 27. Qxc7 {[%clk 0:00:10.1]} 27... Rxc7 {[%clk
0:02:43.9]} 28. f5 {[%clk 0:00:09.5]} 28... gxf5 {[%clk 0:02:40]} 29. Rae2
{[%clk 0:00:10]} 29... Rec8 {[%clk 0:02:39.4]} 30. Rf1 {[%clk 0:00:09.6]} 30...
Rc1 {[%clk 0:02:39.1]} 31. g4 {[%clk 0:00:08.5]} 31... Rxf1+ {[%clk 0:02:34.3]}
32. Kxf1 {[%clk 0:00:09.4]} 32... Nc3 {[%clk 0:02:33.4]} 33. Rc2 {[%clk
0:00:08.3]} 33... fxg4 {[%clk 0:02:29.1]} 34. hxg4 {[%clk 0:00:07.8]} 34... Rc4
{[%clk 0:02:24.1]} 35. Bxd6 {[%clk 0:00:08.3]} 35... Nxd5 {[%clk 0:02:23.1]} 36.
Rxc4 {[%clk 0:00:08]} 36... Ne3+ {[%clk 0:02:23.4]} 37. Ke2 {[%clk 0:00:08.4]}
37... Nxc4 {[%clk 0:02:24.3]} 38. Bf4 {[%clk 0:00:06.7]} 38... Kg7 {[%clk
0:02:23.4]} 39. Kd3 {[%clk 0:00:07.1]} 39... Na3 {[%clk 0:02:23.5]} 40. Kd4
{[%clk 0:00:06.8]} 40... Nc2+ {[%clk 0:02:22.4]} 41. Kc5 {[%clk 0:00:07.3]}
41... Kg6 {[%clk 0:02:22]} 42. Bd2 {[%clk 0:00:05.9]} 42... f5 {[%clk
0:02:21.7]} 43. gxf5+ {[%clk 0:00:06.1]} 43... Kxf5 {[%clk 0:02:22.6]} 44. Kb6
{[%clk 0:00:06.7]} 44... h5 {[%clk 0:02:23.3]} 45. Kxb7 {[%clk 0:00:07.2]} 45...
h4 {[%clk 0:02:23.9]} 46. b5 {[%clk 0:00:03.4]} 46... h3 {[%clk 0:02:23.6]} 47.
bxa6 {[%clk 0:00:02.1]} 47... h2 {[%clk 0:02:23.9]} 48. a7 {[%clk 0:00:02.7]}
48... h1=Q+ {[%clk 0:02:24.8]} 49. Kb8 {[%clk 0:00:02.9]} 49... Qh8+ {[%clk
0:02:24.2]} 50. Kb7 {[%clk 0:00:03.2]} 50... Qg7+ {[%clk 0:02:24.5]} 51. Kb8
{[%clk 0:00:03.7]} 51... Qf8+ {[%clk 0:02:24.9]} 52. Kb7 {[%clk 0:00:04.2]}
52... Qe7+ {[%clk 0:02:25.1]} 53. Kb8 {[%clk 0:00:04.8]} 53... Qd8+ {[%clk
0:02:25.4]} 54. Kb7 {[%clk 0:00:05.4]} 54... Qd7+ {[%clk 0:02:25.8]} 55. Kb8
{[%clk 0:00:05.9]} 55... Qb5+ {[%clk 0:02:25.7]} 56. Kc8 {[%clk 0:00:05.3]}
56... Qc6+ {[%clk 0:02:21.1]} 57. Kb8 {[%clk 0:00:05.7]} 57... Qd6+ {[%clk
0:02:19.2]} 58. Kb7 {[%clk 0:00:04.8]} 58... Nb4 {[%clk 0:02:04.6]} 59. Bxb4
{[%clk 0:00:04.2]} 59... Qxb4+ {[%clk 0:02:04.8]} 60. Kc8 {[%clk 0:00:03.2]}
60... Qc5+ {[%clk 0:02:04]} 61. Kb7 {[%clk 0:00:03.2]} 61... Qb5+ {[%clk
0:02:04.2]} 62. Kc8 {[%clk 0:00:02.8]} 62... Qd5 {[%clk 0:01:57]} 63. Kb8 {[%clk
0:00:02.8]} 63... Qd8+ {[%clk 0:01:57.2]} 64. Kb7 {[%clk 0:00:03.2]} 64... Qe7+
{[%clk 0:01:57.7]} 65. Kb8 {[%clk 0:00:03.5]} 65... Qb4+ {[%clk 0:01:57.8]} 66.
Kc8 {[%clk 0:00:02.8]} 66... Qxa5 {[%clk 0:01:12.3]} 67. Kb8 {[%clk 0:00:02]}
67... Qb6+ {[%clk 0:01:12.4]} 68. Ka8 {[%clk 0:00:02.6]} 68... Qc5 {[%clk
0:01:11.8]} 69. Kb8 {[%clk 0:00:02.5]} 69... Qd6+ {[%clk 0:01:11.2]} 70. Kb7
{[%clk 0:00:02.2]} 70... Qe7+ {[%clk 0:01:11.2]} 71. Kb8 {[%clk 0:00:02.6]}
71... Qe5+ {[%clk 0:01:11.3]} 72. Kb7 {[%clk 0:00:03]} 72... Qe4+ {[%clk
0:01:11.8]} 73. Kb8 {[%clk 0:00:03.4]} 73... Qb1+ {[%clk 0:01:12.4]} 74. Ka8
{[%clk 0:00:03.5]} 74... Qa2 {[%clk 0:01:12.2]} 75. Kb8 {[%clk 0:00:03.7]} 75...
Qb3+ {[%clk 0:01:12.7]} 76. Kc8 {[%clk 0:00:03.4]} 76... Qf3 {[%clk 0:01:12.5]}
77. Kb8 {[%clk 0:00:03.5]} 77... Qf4+ {[%clk 0:01:12.2]} 78. Kb7 {[%clk
0:00:03.6]} 78... Qe4+ {[%clk 0:01:11.7]} 79. Kb8 {[%clk 0:00:03.9]} 79... Qe8+
{[%clk 0:01:09.8]} 80. Kb7 {[%clk 0:00:04.2]} 80... Qb5+ {[%clk 0:01:09.8]} 81.
Ka8 {[%clk 0:00:03.1]} 81... Qc5 {[%clk 0:01:08.6]} 82. Kb7 {[%clk 0:00:02.8]}
82... Qc4 {[%clk 0:01:09.4]} 83. a8=Q {[%clk 0:00:02.8]} 83... Qe4+ {[%clk
0:01:09.6]} 84. Kb8 {[%clk 0:00:03.1]} 84... Qxa8+ {[%clk 0:01:10.2]} 85. Kxa8
{[%clk 0:00:03.6]} 1/2-1/2

[Event "Early-Titled-Tuesday-Blitz-March-26-2024"]
[Site "Chess.com"]
[Date "2024.03.26"]
[Round "4"]
[White "XDPS"]
[Black "Zavgorodniy_Sergiy"]
[Result "0-1"]
[WhiteElo "2897"]
[BlackElo "2634"]
[TimeControl "180+1"]
[EndTime "8:39:04 PDT"]
[Termination "Zavgorodniy_Sergiy won by checkmate"]

1. d4 {[%clk 0:03:00.9]} 1... d5 {[%clk 0:02:59.6]} 2. Bf4 {[%clk 0:02:58.4]}
2... Nf6 {[%clk 0:02:59.5]} 3. e3 {[%clk 0:02:58.8]} 3... e6 {[%clk 0:02:59.8]}
4. Nf3 {[%clk 0:02:59.1]} 4... c5 {[%clk 0:03:00.1]} 5. c3 {[%clk 0:02:57]} 5...
Bd6 {[%clk 0:03:00.4]} 6. Bg3 {[%clk 0:02:56.8]} 6... Qc7 {[%clk 0:03:00.4]} 7.
Nbd2 {[%clk 0:02:55.8]} 7... Nbd7 {[%clk 0:02:59.7]} 8. c4 {[%clk 0:02:51.3]}
8... Bxg3 {[%clk 0:02:57.8]} 9. hxg3 {[%clk 0:02:51.3]} 9... dxc4 {[%clk
0:02:58.3]} 10. Bxc4 {[%clk 0:02:47.1]} 10... O-O {[%clk 0:02:56.1]} 11. Rc1
{[%clk 0:02:47]} 11... a6 {[%clk 0:02:51.6]} 12. Bd3 {[%clk 0:02:46.3]} 12... b6
{[%clk 0:02:33]} 13. Bb1 {[%clk 0:02:40.2]} 13... Bb7 {[%clk 0:02:31.6]} 14. g4
{[%clk 0:02:40.9]} 14... g6 {[%clk 0:02:27.8]} 15. g5 {[%clk 0:02:39]} 15... Nd5
{[%clk 0:02:21.7]} 16. dxc5 {[%clk 0:02:38.3]} 16... Rac8 {[%clk 0:02:16.5]} 17.
c6 {[%clk 0:02:06.1]} 17... Bxc6 {[%clk 0:02:15.6]} 18. Nd4 {[%clk 0:02:06.2]}
18... Qd6 {[%clk 0:02:04]} 19. Qg4 {[%clk 0:01:58.6]} 19... Bb7 {[%clk
0:02:01.7]} 20. Rd1 {[%clk 0:01:57.8]} 20... Ne5 {[%clk 0:01:51.8]} 21. Qh4
{[%clk 0:01:55.8]} 21... h5 {[%clk 0:01:52]} 22. gxh6 {[%clk 0:01:56.4]} 22...
Kh7 {[%clk 0:01:50.4]} 23. a3 {[%clk 0:01:55.3]} 23... f6 {[%clk 0:01:48.5]} 24.
Ne4 {[%clk 0:01:54.4]} 24... Qe7 {[%clk 0:01:47.2]} 25. Qg3 {[%clk 0:01:42.9]}
25... Rg8 {[%clk 0:01:40.3]} 26. O-O {[%clk 0:01:29.8]} 26... Rcf8 {[%clk
0:01:25.5]} 27. Qh3 {[%clk 0:01:19.8]} 27... f5 {[%clk 0:01:17.6]} 28. Nd2
{[%clk 0:01:20]} 28... Ng4 {[%clk 0:01:13.9]} 29. N2f3 {[%clk 0:01:17.4]} 29...
e5 {[%clk 0:00:55.5]} 30. Ne2 {[%clk 0:01:16.1]} 30... e4 {[%clk 0:00:50]} 31.
Nfd4 {[%clk 0:01:16.2]} 31... Rf6 {[%clk 0:00:35.8]} 32. Nf4 {[%clk 0:01:11.7]}
32... Nxf4 {[%clk 0:00:24.9]} 33. exf4 {[%clk 0:01:12.6]} 33... e3 {[%clk
0:00:24]} 34. fxe3 {[%clk 0:00:22.7]} 34... Qxe3+ {[%clk 0:00:24.9]} 35. Qxe3
{[%clk 0:00:22.8]} 35... Nxe3 {[%clk 0:00:24.9]} 36. Rde1 {[%clk 0:00:21.9]}
36... Nxf1 {[%clk 0:00:23.6]} 37. Re7+ {[%clk 0:00:21]} 37... Kxh6 {[%clk
0:00:23.6]} 38. Rxb7 {[%clk 0:00:21.2]} 38... Nd2 {[%clk 0:00:23.2]} 39. Bc2
{[%clk 0:00:20.2]} 39... Rd6 {[%clk 0:00:21.3]} 40. Ne2 {[%clk 0:00:19.9]} 40...
Ne4 {[%clk 0:00:20.6]} 41. Bxe4 {[%clk 0:00:19.7]} 41... fxe4 {[%clk 0:00:21.5]}
42. Ng3 {[%clk 0:00:20.6]} 42... Re8 {[%clk 0:00:19.3]} 43. f5 {[%clk
0:00:21.1]} 43... e3 {[%clk 0:00:17.8]} 44. Kf1 {[%clk 0:00:21.3]} 44... e2+
{[%clk 0:00:15.6]} 45. Nxe2 {[%clk 0:00:21.5]} 45... Rd1+ {[%clk 0:00:15.7]} 46.
Kf2 {[%clk 0:00:22.1]} 46... Rd2 {[%clk 0:00:16.1]} 47. Rxb6 {[%clk 0:00:22.8]}
47... Rexe2+ {[%clk 0:00:15.4]} 48. Kf3 {[%clk 0:00:23.5]} 48... Rxb2 {[%clk
0:00:15.3]} 49. Rxg6+ {[%clk 0:00:23.3]} 49... Kh7 {[%clk 0:00:15.8]} 50. g4
{[%clk 0:00:22.5]} 50... Rf2+ {[%clk 0:00:15.2]} 51. Kg3 {[%clk 0:00:22.3]}
51... Rfc2 {[%clk 0:00:12.5]} 52. Rxa6 {[%clk 0:00:21.8]} 52... Rc7 {[%clk
0:00:10.9]} 53. Kh4 {[%clk 0:00:20.4]} 53... Rg2 {[%clk 0:00:08.5]} 54. Kh3
{[%clk 0:00:17.6]} 54... Rg1 {[%clk 0:00:08]} 55. Rg6 {[%clk 0:00:16.3]} 55...
Rg7 {[%clk 0:00:07.5]} 56. Re6 {[%clk 0:00:04.8]} 56... R1xg4 {[%clk 0:00:07.2]}
57. a4 {[%clk 0:00:04.9]} 57... Rxa4 {[%clk 0:00:06.7]} 58. Re3 {[%clk
0:00:03.7]} 58... Ra1 {[%clk 0:00:05.7]} 59. Rf3 {[%clk 0:00:03.8]} 59... Rh1#
{[%clk 0:00:05.2]} 0-1

[Event "Early-Titled-Tuesday-Blitz-March-26-2024"]
[Site "Chess.com"]
[Date "2024.03.26"]
[Round "4"]
[White "ATM622"]
[Black "Donskov_AN"]
[Result "0-1"]
[WhiteElo "2492"]
[BlackElo "2363"]
[TimeControl "180+1"]
[EndTime "8:39:12 PDT"]
[Termination "Donskov_AN won by resignation"]

1. d4 {[%clk 0:02:56.3]} 1... c5 {[%clk 0:02:53.6]} 2. d5 {[%clk 0:02:55.6]}
2... Nf6 {[%clk 0:02:52.6]} 3. c4 {[%clk 0:02:55.9]} 3... d6 {[%clk 0:02:52.9]}
4. Nc3 {[%clk 0:02:54.5]} 4... e5 {[%clk 0:02:53.1]} 5. g3 {[%clk 0:02:54.1]}
5... Be7 {[%clk 0:02:52.8]} 6. Bg2 {[%clk 0:02:54.6]} 6... a6 {[%clk 0:02:52.8]}
7. Nf3 {[%clk 0:02:54]} 7... h6 {[%clk 0:02:52.6]} 8. O-O {[%clk 0:02:53.7]}
8... Nbd7 {[%clk 0:02:52]} 9. e4 {[%clk 0:02:53.6]} 9... Rb8 {[%clk 0:02:51]}
10. a4 {[%clk 0:02:53.3]} 10... g5 {[%clk 0:02:47.6]} 11. Ne1 {[%clk 0:02:50.7]}
11... Nf8 {[%clk 0:02:47.8]} 12. Nd3 {[%clk 0:02:49.5]} 12... Ng6 {[%clk
0:02:47.2]} 13. f4 {[%clk 0:02:48.2]} 13... gxf4 {[%clk 0:02:42.4]} 14. gxf4
{[%clk 0:02:48]} 14... Rg8 {[%clk 0:02:43.1]} 15. Kh1 {[%clk 0:02:37]} 15... Nh4
{[%clk 0:02:41.9]} 16. Rg1 {[%clk 0:02:34]} 16... Nxg2 {[%clk 0:02:41.3]} 17.
Rxg2 {[%clk 0:02:33.7]} 17... Rxg2 {[%clk 0:02:40.7]} 18. Kxg2 {[%clk
0:02:34.6]} 18... Nd7 {[%clk 0:02:32.4]} 19. Qh5 {[%clk 0:02:27.6]} 19... Bf6
{[%clk 0:02:25.4]} 20. f5 {[%clk 0:02:24]} 20... Ke7 {[%clk 0:02:24.2]} 21. Bxh6
{[%clk 0:02:07.7]} 21... Qh8 {[%clk 0:02:21.9]} 22. Rg1 {[%clk 0:01:58.2]} 22...
b5 {[%clk 0:02:16.5]} 23. axb5 {[%clk 0:01:52.9]} 23... axb5 {[%clk 0:02:16.7]}
24. Nxb5 {[%clk 0:01:48]} 24... Ba6 {[%clk 0:02:16.8]} 25. Kh1 {[%clk
0:01:39.4]} 25... Bxb5 {[%clk 0:02:14.8]} 26. cxb5 {[%clk 0:01:36.7]} 26... Rxb5
{[%clk 0:02:14.9]} 27. Rc1 {[%clk 0:01:00.3]} 27... Rb3 {[%clk 0:02:11.5]} 28.
Nf2 {[%clk 0:00:55.6]} 28... Rxb2 {[%clk 0:02:08.2]} 29. Ng4 {[%clk 0:00:55.4]}
29... Rb4 {[%clk 0:01:41.9]} 30. Re1 {[%clk 0:00:41]} 30... c4 {[%clk
0:01:39.1]} 31. Qh3 {[%clk 0:00:33.3]} 31... Rb3 {[%clk 0:01:34.8]} 32. Qf1
{[%clk 0:00:32.9]} 32... Rd3 {[%clk 0:00:53.5]} 33. Rc1 {[%clk 0:00:30.3]} 33...
Rd4 {[%clk 0:00:43.7]} 34. Rxc4 {[%clk 0:00:29.3]} 34... Qg8 {[%clk 0:00:37.5]}
35. h3 {[%clk 0:00:21.9]} 35... Qb8 {[%clk 0:00:29.9]} 36. Rxd4 {[%clk
0:00:10.5]} 36... exd4 {[%clk 0:00:30.8]} 37. Nxf6 {[%clk 0:00:09.8]} 37... Nxf6
{[%clk 0:00:31.7]} 38. Bg5 {[%clk 0:00:10]} 38... Qb2 {[%clk 0:00:30.8]} 39. Qd3
{[%clk 0:00:07.7]} 39... Qc3 {[%clk 0:00:14.9]} 40. Qxc3 {[%clk 0:00:07.5]}
40... dxc3 {[%clk 0:00:15.8]} 41. Kg2 {[%clk 0:00:07.9]} 41... c2 {[%clk
0:00:08.1]} 42. Kf3 {[%clk 0:00:08.2]} 42... Ke8 {[%clk 0:00:06.8]} 43. h4
{[%clk 0:00:05.2]} 43... Nd7 {[%clk 0:00:06.1]} 44. Bc1 {[%clk 0:00:04.5]} 44...
Nc5 {[%clk 0:00:06.1]} 45. Ke3 {[%clk 0:00:01.9]} 45... Nb3 {[%clk 0:00:06.3]}
46. Bb2 {[%clk 0:00:02.2]} 46... c1=Q+ {[%clk 0:00:06.4]} 47. Bxc1 {[%clk
0:00:02.3]} 47... Nxc1 {[%clk 0:00:07.3]} 48. h5 {[%clk 0:00:02.3]} 48... f6
{[%clk 0:00:07.6]} 49. Kd2 {[%clk 0:00:01.5]} 49... Nb3+ {[%clk 0:00:07.3]} 50.
Ke3 {[%clk 0:00:01.7]} 50... Nc5 {[%clk 0:00:07]} 51. Kd4 {[%clk 0:00:01.9]}
51... Kf7 {[%clk 0:00:06.8]} 52. Ke3 {[%clk 0:00:01.1]} 52... Kg7 {[%clk
0:00:07.1]} 53. Kd4 {[%clk 0:00:01.5]} 53... Kh6 {[%clk 0:00:07.2]} 54. e5
{[%clk 0:00:01.7]} 54... fxe5+ {[%clk 0:00:07.6]} 55. Kc4 {[%clk 0:00:01.9]}
55... Kxh5 {[%clk 0:00:07.4]} 56. Kc3 {[%clk 0:00:01.7]} 56... Kg5 {[%clk
0:00:07.1]} 57. f6 {[%clk 0:00:02.6]} 57... Kxf6 {[%clk 0:00:07.4]} 0-1

[Event "Early-Titled-Tuesday-Blitz-March-26-2024"]
[Site "Chess.com"]
[Date "2024.03.26"]
[Round "4"]
[White "FGHSMN"]
[Black "RobertDowneyJr0111"]
[Result "1-0"]
[WhiteElo "2961"]
[BlackElo "2645"]
[TimeControl "180+1"]
[EndTime "8:39:15 PDT"]
[Termination "FGHSMN won by resignation"]

1. d4 {[%clk 0:03:00.9]} 1... d5 {[%clk 0:02:59.8]} 2. Bf4 {[%clk 0:03:00.9]}
2... Nf6 {[%clk 0:02:59.3]} 3. e3 {[%clk 0:03:01.1]} 3... c5 {[%clk 0:02:59.5]}
4. Nd2 {[%clk 0:02:59.9]} 4... Nc6 {[%clk 0:02:59.7]} 5. c3 {[%clk 0:03:00.6]}
5... Qb6 {[%clk 0:02:58]} 6. Qb3 {[%clk 0:02:56.4]} 6... c4 {[%clk 0:02:58]} 7.
Qc2 {[%clk 0:02:56.4]} 7... Bg4 {[%clk 0:02:57.3]} 8. h3 {[%clk 0:02:42.7]} 8...
Bh5 {[%clk 0:02:57.2]} 9. b3 {[%clk 0:02:43.1]} 9... Bg6 {[%clk 0:02:56.5]} 10.
Qb2 {[%clk 0:02:38.2]} 10... e6 {[%clk 0:02:53.1]} 11. Ngf3 {[%clk 0:02:38.1]}
11... h6 {[%clk 0:02:27.8]} 12. Be2 {[%clk 0:02:33.3]} 12... Be7 {[%clk
0:02:19.9]} 13. Bd1 {[%clk 0:02:21.4]} 13... Rc8 {[%clk 0:02:15.6]} 14. O-O
{[%clk 0:02:06.4]} 14... O-O {[%clk 0:02:01.4]} 15. Ne5 {[%clk 0:01:47]} 15...
Nxe5 {[%clk 0:01:58.3]} 16. Bxe5 {[%clk 0:01:47.9]} 16... Ne4 {[%clk 0:01:20.8]}
17. Nxe4 {[%clk 0:01:42.6]} 17... Bxe4 {[%clk 0:01:21.7]} 18. Bc2 {[%clk
0:01:39.5]} 18... Bxc2 {[%clk 0:01:21.5]} 19. Qxc2 {[%clk 0:01:40.4]} 19... a5
{[%clk 0:01:14.9]} 20. Rab1 {[%clk 0:01:37.4]} 20... Qa6 {[%clk 0:01:13.6]} 21.
Qd2 {[%clk 0:01:17.5]} 21... b5 {[%clk 0:01:08.5]} 22. e4 {[%clk 0:01:03.6]}
22... b4 {[%clk 0:00:51.5]} 23. exd5 {[%clk 0:00:59]} 23... exd5 {[%clk
0:00:52.4]} 24. bxc4 {[%clk 0:00:32.8]} 24... dxc4 {[%clk 0:00:52.2]} 25. Rfe1
{[%clk 0:00:26.3]} 25... Rfe8 {[%clk 0:00:51.7]} 26. d5 {[%clk 0:00:23.8]} 26...
Rcd8 {[%clk 0:00:37]} 27. Qd4 {[%clk 0:00:22.5]} 27... Bf8 {[%clk 0:00:21.8]}
28. Re3 {[%clk 0:00:21.5]} 28... f6 {[%clk 0:00:14.5]} 29. Bf4 {[%clk
0:00:20.8]} 29... Rxe3 {[%clk 0:00:14.6]} 30. Bxe3 {[%clk 0:00:21.7]} 30... Qb5
{[%clk 0:00:14.1]} 31. Rd1 {[%clk 0:00:18.6]} 31... b3 {[%clk 0:00:12.9]} 32.
axb3 {[%clk 0:00:19.5]} 32... cxb3 {[%clk 0:00:13.8]} 33. c4 {[%clk 0:00:20.2]}
33... Qb4 {[%clk 0:00:11.8]} 34. Bd2 {[%clk 0:00:17]} 34... Qa4 {[%clk
0:00:11.7]} 35. Bc3 {[%clk 0:00:16.6]} 35... Bb4 {[%clk 0:00:10.6]} 36. Bb2
{[%clk 0:00:16.4]} 36... Qd7 {[%clk 0:00:09.4]} 37. c5 {[%clk 0:00:16.1]} 37...
Qa7 {[%clk 0:00:09.3]} 38. Rc1 {[%clk 0:00:14.4]} 38... Rc8 {[%clk 0:00:07]} 39.
d6 {[%clk 0:00:14.4]} 39... Rxc5 {[%clk 0:00:05.5]} 40. Qd3 {[%clk 0:00:05.7]}
40... Rxc1+ {[%clk 0:00:05.3]} 41. Bxc1 {[%clk 0:00:06.6]} 41... Qc5 {[%clk
0:00:05.6]} 42. Qxb3+ {[%clk 0:00:06.8]} 42... Kh8 {[%clk 0:00:04.9]} 43. Bf4
{[%clk 0:00:07.1]} 43... Qd4 {[%clk 0:00:03.8]} 44. Bg3 {[%clk 0:00:02.4]} 44...
Bxd6 {[%clk 0:00:03.6]} 45. Bxd6 {[%clk 0:00:02.7]} 45... Qxd6 {[%clk
0:00:04.5]} 46. Qb5 {[%clk 0:00:03.2]} 46... Qd1+ {[%clk 0:00:02.9]} 47. Kh2
{[%clk 0:00:03.2]} 47... Qd6+ {[%clk 0:00:03.8]} 48. g3 {[%clk 0:00:03.1]} 48...
Qe5 {[%clk 0:00:04.7]} 49. Qa6 {[%clk 0:00:02.2]} 49... Kh7 {[%clk 0:00:04.8]}
50. h4 {[%clk 0:00:02.4]} 50... h5 {[%clk 0:00:04]} 51. Qa8 {[%clk 0:00:02.8]}
51... Qf5 {[%clk 0:00:04.2]} 52. Kg2 {[%clk 0:00:03.4]} 52... Qc5 {[%clk
0:00:03.5]} 53. Qa7 {[%clk 0:00:03.9]} 53... f5 {[%clk 0:00:03.7]} 54. Qxc5
{[%clk 0:00:03.7]} 1-0